[Event "*** SCC Grand Prix: Titled Tuesday Blitz"]
[Site "Chess.com"]
[Date "2020.10.13"]
[Round "4"]
[White "WildTricks"]
[Black "kidagent"]
[Result "1-0"]
[WhiteElo "2443"]
[BlackElo "2277"]
[TimeControl "180+1"]
[EndTime "10:40:43 PDT"]
[Termination "WildTricks won by resignation"]

1. e4 {[%clk 0:03:00.9]} 1... c5 {[%clk 0:02:59.8]} 2. Nf3 {[%clk 0:03:00.8]}
2... d6 {[%clk 0:03:00]} 3. d4 {[%clk 0:03:00.8]} 3... cxd4 {[%clk 0:03:00.9]}
4. Qxd4 {[%clk 0:03:01.7]} 4... Bd7 {[%clk 0:03:00.5]} 5. Be2 {[%clk 0:03:00.8]}
5... Nc6 {[%clk 0:03:00.6]} 6. Qe3 {[%clk 0:03:01.2]} 6... g6 {[%clk 0:03:00]}
7. O-O {[%clk 0:03:01.4]} 7... Bg7 {[%clk 0:03:00.4]} 8. Rd1 {[%clk 0:03:00.7]}
8... Nf6 {[%clk 0:03:00.4]} 9. h3 {[%clk 0:03:01]} 9... O-O {[%clk 0:02:59.9]}
10. c4 {[%clk 0:03:01.2]} 10... Qc7 {[%clk 0:02:51.4]} 11. Nc3 {[%clk
0:03:00.9]} 11... a6 {[%clk 0:02:50.5]} 12. Bd2 {[%clk 0:02:59.2]} 12... Rac8
{[%clk 0:02:46.1]} 13. Rac1 {[%clk 0:02:59.5]} 13... e6 {[%clk 0:02:42.3]} 14.
Nd5 {[%clk 0:02:56.6]} 14... Qd8 {[%clk 0:02:33.5]} 15. Nb6 {[%clk 0:02:50.8]}
15... Rb8 {[%clk 0:02:27.5]} 16. Bc3 {[%clk 0:02:48.1]} 16... Ne8 {[%clk
0:02:23.9]} 17. Bxg7 {[%clk 0:02:42]} 17... Kxg7 {[%clk 0:02:24.8]} 18. e5
{[%clk 0:02:40.3]} 18... Bc8 {[%clk 0:02:12.6]} 19. exd6 {[%clk 0:02:36.7]}
19... Nf6 {[%clk 0:02:08.7]} 20. c5 {[%clk 0:02:33.5]} 20... Nd7 {[%clk
0:02:03.7]} 21. Nxd7 {[%clk 0:02:27.7]} 21... Bxd7 {[%clk 0:02:03.2]} 22. b4
{[%clk 0:02:27.2]} 22... Qf6 {[%clk 0:01:58.3]} 23. Rb1 {[%clk 0:02:24.2]} 23...
Rfc8 {[%clk 0:01:56]} 24. a4 {[%clk 0:02:23.4]} 24... h6 {[%clk 0:01:42]} 25.
Qa3 {[%clk 0:02:15.7]} 25... Ne5 {[%clk 0:01:33.5]} 26. Nxe5 {[%clk 0:02:14.2]}
26... Qxe5 {[%clk 0:01:33.7]} 27. Bf1 {[%clk 0:02:01]} 27... a5 {[%clk 0:01:24]}
28. Rbc1 {[%clk 0:02:00.9]} 28... axb4 {[%clk 0:01:21.7]} 29. Qxb4 {[%clk
0:02:01.8]} 29... Bc6 {[%clk 0:01:20.3]} 30. Bb5 {[%clk 0:01:55]} 30... Bd5
{[%clk 0:01:14.6]} 31. Qd4 {[%clk 0:01:51.1]} 31... Qxd4 {[%clk 0:01:13.5]} 32.
Rxd4 {[%clk 0:01:52]} 32... Kf8 {[%clk 0:01:08.4]} 33. Kf1 {[%clk 0:01:40.5]}
33... Rd8 {[%clk 0:01:03.2]} 34. Rcd1 {[%clk 0:01:34.6]} 34... Rbc8 {[%clk
0:01:02.7]} 35. Rxd5 {[%clk 0:01:34.6]} 35... exd5 {[%clk 0:01:02.4]} 36. Rxd5
{[%clk 0:01:35.5]} 36... Kg7 {[%clk 0:00:59.5]} 37. Ke2 {[%clk 0:01:34.9]} 37...
Kf6 {[%clk 0:00:59.8]} 38. Ke3 {[%clk 0:01:32.5]} 38... Ke6 {[%clk 0:01:00.1]}
39. Kd4 {[%clk 0:01:32.6]} 39... f5 {[%clk 0:00:54.3]} 40. Re5+ {[%clk 0:01:29]}
40... Kf6 {[%clk 0:00:54.3]} 41. Re7 {[%clk 0:01:28.9]} 41... b6 {[%clk
0:00:52.3]} 42. Rh7 {[%clk 0:00:55.2]} 42... Rxc5 {[%clk 0:00:43.7]} 43. d7
{[%clk 0:00:54.5]} 43... Rc2 {[%clk 0:00:36.7]} 44. Ke3 {[%clk 0:00:51.7]} 44...
h5 {[%clk 0:00:33.3]} 45. h4 {[%clk 0:00:50.2]} 45... Rc3+ {[%clk 0:00:24]} 46.
Kd2 {[%clk 0:00:45.1]} 46... Rc5 {[%clk 0:00:22.7]} 47. g3 {[%clk 0:00:44.8]}
47... Re5 {[%clk 0:00:20.4]} 48. Kd3 {[%clk 0:00:44.2]} 48... Rd5+ {[%clk
0:00:20]} 49. Ke3 {[%clk 0:00:43.3]} 49... Rc5 {[%clk 0:00:20]} 50. Kd4 {[%clk
0:00:41.4]} 50... Rc1 {[%clk 0:00:19.7]} 51. Bc4 {[%clk 0:00:36.7]} 51... Rd1+
{[%clk 0:00:18.4]} 52. Bd3 {[%clk 0:00:32.7]} 52... Rc1 {[%clk 0:00:18.1]} 53.
Bb5 {[%clk 0:00:32.4]} 53... Rd1+ {[%clk 0:00:18]} 54. Ke3 {[%clk 0:00:32.6]}
54... Re1+ {[%clk 0:00:18.1]} 55. Kf4 {[%clk 0:00:30.6]} 55... Rc1 {[%clk
0:00:16.3]} 56. Kf3 {[%clk 0:00:27.3]} 56... Rc5 {[%clk 0:00:15.9]} 57. Ke3
{[%clk 0:00:26.9]} 57... Rc3+ {[%clk 0:00:15.7]} 58. Kd4 {[%clk 0:00:26.6]}
58... Rc1 {[%clk 0:00:15.6]} 59. Kd5 {[%clk 0:00:24.7]} 59... Rc5+ {[%clk
0:00:14.2]} 60. Kd6 {[%clk 0:00:23.8]} 60... Rc2 {[%clk 0:00:15.1]} 61. Bd3
{[%clk 0:00:14.2]} 61... Rc3 {[%clk 0:00:14.4]} 62. Bb5 {[%clk 0:00:13.4]} 62...
Rc2 {[%clk 0:00:13.4]} 63. f3 {[%clk 0:00:13.6]} 63... Rc3 {[%clk 0:00:13.3]}
64. Bc6 {[%clk 0:00:12.8]} 64... Rg8 {[%clk 0:00:11.4]} 65. Kc7 {[%clk
0:00:11.9]} 65... b5 {[%clk 0:00:05.4]} 66. axb5 {[%clk 0:00:11.8]} 66... Rg7
{[%clk 0:00:04.6]} 67. Rxg7 {[%clk 0:00:11.6]} 67... Kxg7 {[%clk 0:00:05.5]} 68.
d8=Q {[%clk 0:00:12]} 1-0

[Event "*** SCC Grand Prix: Titled Tuesday Blitz"]
[Site "Chess.com"]
[Date "2020.10.13"]
[Round "4"]
[White "FMKonstantin_Twitch"]
[Black "Cayse"]
[Result "0-1"]
[WhiteElo "2556"]
[BlackElo "2750"]
[TimeControl "180+1"]
[EndTime "10:40:44 PDT"]
[Termination "Cayse won on time"]

1. d4 {[%clk 0:03:00.9]} 1... Nf6 {[%clk 0:02:59.5]} 2. Bf4 {[%clk 0:03:00.6]}
2... e6 {[%clk 0:02:58.2]} 3. e3 {[%clk 0:03:00.9]} 3... b6 {[%clk 0:02:58]} 4.
Nf3 {[%clk 0:03:00.3]} 4... Bb7 {[%clk 0:02:57.9]} 5. c4 {[%clk 0:03:00.8]} 5...
Be7 {[%clk 0:02:56.7]} 6. Nc3 {[%clk 0:03:00.8]} 6... Nh5 {[%clk 0:02:55.9]} 7.
Be5 {[%clk 0:02:56.2]} 7... d6 {[%clk 0:02:53.1]} 8. Bg3 {[%clk 0:02:56.5]} 8...
O-O {[%clk 0:02:52.5]} 9. Bd3 {[%clk 0:02:55.5]} 9... Nd7 {[%clk 0:02:51.8]} 10.
Qc2 {[%clk 0:02:52.6]} 10... g6 {[%clk 0:02:44.5]} 11. Be4 {[%clk 0:02:51.2]}
11... Bxe4 {[%clk 0:02:41.5]} 12. Qxe4 {[%clk 0:02:51.6]} 12... Bf6 {[%clk
0:02:09.1]} 13. O-O-O {[%clk 0:02:45.9]} 13... Qc8 {[%clk 0:02:00.6]} 14. Bh4
{[%clk 0:02:43.1]} 14... Bg7 {[%clk 0:01:57.5]} 15. Qc2 {[%clk 0:02:35.6]} 15...
Qb7 {[%clk 0:01:54.7]} 16. Qe2 {[%clk 0:02:14.4]} 16... a6 {[%clk 0:01:48.7]}
17. Kb1 {[%clk 0:02:13.1]} 17... c6 {[%clk 0:01:34.9]} 18. e4 {[%clk 0:02:11.4]}
18... Rfe8 {[%clk 0:01:32.1]} 19. e5 {[%clk 0:02:11.3]} 19... d5 {[%clk
0:01:31.5]} 20. g4 {[%clk 0:02:10.3]} 20... Nf4 {[%clk 0:01:30.2]} 21. Qd2
{[%clk 0:02:08.8]} 21... Nh3 {[%clk 0:01:28]} 22. Bg3 {[%clk 0:02:03]} 22...
dxc4 {[%clk 0:01:21]} 23. Qe2 {[%clk 0:02:02.2]} 23... b5 {[%clk 0:01:14.3]} 24.
Ne4 {[%clk 0:01:58.6]} 24... c5 {[%clk 0:01:10.2]} 25. dxc5 {[%clk 0:01:41.2]}
25... Qc7 {[%clk 0:01:06]} 26. Qe3 {[%clk 0:01:35.9]} 26... Rec8 {[%clk
0:01:02.3]} 27. Nd6 {[%clk 0:01:17]} 27... Nxc5 {[%clk 0:00:58.8]} 28. Nxc8
{[%clk 0:01:16.2]} 28... Rxc8 {[%clk 0:00:59.7]} 29. Ne1 {[%clk 0:01:06.3]}
29... Na4 {[%clk 0:00:42.2]} 30. Nc2 {[%clk 0:00:59]} 30... Bf8 {[%clk
0:00:34.7]} 31. f4 {[%clk 0:00:50.4]} 31... Qc6 {[%clk 0:00:27.4]} 32. Bh4
{[%clk 0:00:45.9]} 32... Qg2 {[%clk 0:00:27.1]} 33. Qg3 {[%clk 0:00:40.1]} 33...
Qxg3 {[%clk 0:00:26.4]} 34. hxg3 {[%clk 0:00:41]} 34... Nf2 {[%clk 0:00:26]} 35.
Rhf1 {[%clk 0:00:32.4]} 35... Nxd1 {[%clk 0:00:25.9]} 36. Rxd1 {[%clk
0:00:33.3]} 36... Nc5 {[%clk 0:00:26]} 37. Ne3 {[%clk 0:00:21.6]} 37... Nd3
{[%clk 0:00:25.6]} 38. b3 {[%clk 0:00:21.1]} 38... Rb8 {[%clk 0:00:23.1]} 39.
Kc2 {[%clk 0:00:16.4]} 39... Bc5 {[%clk 0:00:22.2]} 40. bxc4 {[%clk 0:00:14.5]}
40... Nf2 {[%clk 0:00:20.4]} 41. Re1 {[%clk 0:00:13.1]} 41... Rc8 {[%clk
0:00:19.9]} 42. Kb3 {[%clk 0:00:11.3]} 42... Bxe3 {[%clk 0:00:18.9]} 43. Rxe3
{[%clk 0:00:12.2]} 43... bxc4+ {[%clk 0:00:18.4]} 44. Kc2 {[%clk 0:00:12.3]}
44... Nxg4 {[%clk 0:00:18.2]} 45. Ra3 {[%clk 0:00:11.6]} 45... Rc6 {[%clk
0:00:17.4]} 46. Ra4 {[%clk 0:00:11.1]} 46... h6 {[%clk 0:00:17]} 47. Rb4 {[%clk
0:00:10.8]} 47... g5 {[%clk 0:00:16]} 48. fxg5 {[%clk 0:00:10.4]} 48... hxg5
{[%clk 0:00:16.4]} 49. Bxg5 {[%clk 0:00:11.3]} 49... Nxe5 {[%clk 0:00:16.7]} 50.
Bf6 {[%clk 0:00:11.3]} 50... Ng4 {[%clk 0:00:15.9]} 51. Rb8+ {[%clk 0:00:10.2]}
51... Kh7 {[%clk 0:00:16]} 52. Rh8+ {[%clk 0:00:11.1]} 52... Kg6 {[%clk
0:00:16]} 53. Bd4 {[%clk 0:00:12]} 53... Kf5 {[%clk 0:00:15.6]} 54. Kc3 {[%clk
0:00:10.1]} 54... e5 {[%clk 0:00:15.1]} 55. Ba7 {[%clk 0:00:08.8]} 55... Ke4
{[%clk 0:00:14.8]} 56. Rh5 {[%clk 0:00:05.7]} 56... f5 {[%clk 0:00:15]} 57. Rg5
{[%clk 0:00:05.3]} 57... Nh2 {[%clk 0:00:12.8]} 58. Rh5 {[%clk 0:00:04.6]} 58...
Nf3 {[%clk 0:00:12.6]} 59. Rh8 {[%clk 0:00:03.7]} 59... Rg6 {[%clk 0:00:12.3]}
60. Kxc4 {[%clk 0:00:03.2]} 60... Rxg3 {[%clk 0:00:12.8]} 61. Rh6 {[%clk
0:00:02.6]} 61... f4 {[%clk 0:00:13]} 62. Rxa6 {[%clk 0:00:02.3]} 62... Rg4
{[%clk 0:00:12.9]} 63. Bb8 {[%clk 0:00:02]} 63... Nd4 {[%clk 0:00:12.2]} 64. Kc3
{[%clk 0:00:02.9]} 64... f3 {[%clk 0:00:12.1]} 65. Ra5 {[%clk 0:00:02.8]} 65...
Rg5 {[%clk 0:00:12.3]} 66. Kd2 {[%clk 0:00:01.3]} 66... f2 {[%clk 0:00:12]} 0-1

[Event "*** SCC Grand Prix: Titled Tuesday Blitz"]
[Site "Chess.com"]
[Date "2020.10.13"]
[Round "4"]
[White "PauloCesarCosta_sad"]
[Black "pooh2012"]
[Result "0-1"]
[WhiteElo "2261"]
[BlackElo "2429"]
[TimeControl "180+1"]
[EndTime "10:40:49 PDT"]
[Termination "pooh2012 won on time"]

1. Nf3 {[%clk 0:03:00.9]} 1... Nf6 {[%clk 0:02:59.7]} 2. c4 {[%clk 0:03:00]}
2... d6 {[%clk 0:03:00.3]} 3. d4 {[%clk 0:02:59.6]} 3... Nbd7 {[%clk 0:03:01.2]}
4. Nc3 {[%clk 0:02:58.7]} 4... c6 {[%clk 0:03:02.1]} 5. g3 {[%clk 0:02:58.6]}
5... Qc7 {[%clk 0:03:02.6]} 6. Bg2 {[%clk 0:02:58.7]} 6... e5 {[%clk 0:03:03.2]}
7. O-O {[%clk 0:02:58]} 7... Be7 {[%clk 0:03:03.2]} 8. b3 {[%clk 0:02:54.2]}
8... O-O {[%clk 0:03:03.6]} 9. Ba3 {[%clk 0:02:50.4]} 9... Re8 {[%clk
0:03:03.3]} 10. dxe5 {[%clk 0:02:50.3]} 10... dxe5 {[%clk 0:02:54.6]} 11. Bxe7
{[%clk 0:02:50.1]} 11... Rxe7 {[%clk 0:02:55.5]} 12. Ng5 {[%clk 0:02:47.2]}
12... h6 {[%clk 0:02:52.4]} 13. Nge4 {[%clk 0:02:47.2]} 13... Nxe4 {[%clk
0:02:52.5]} 14. Nxe4 {[%clk 0:02:47.2]} 14... f5 {[%clk 0:02:45.9]} 15. Nd6
{[%clk 0:02:40.5]} 15... Nf6 {[%clk 0:02:43.1]} 16. Nxc8 {[%clk 0:02:40.5]}
16... Rxc8 {[%clk 0:02:43.7]} 17. Qc2 {[%clk 0:02:34.8]} 17... e4 {[%clk
0:02:42.8]} 18. e3 {[%clk 0:02:29.4]} 18... Nd7 {[%clk 0:02:33.7]} 19. Bh3
{[%clk 0:02:26.8]} 19... Rf8 {[%clk 0:02:28]} 20. Rad1 {[%clk 0:02:19.5]} 20...
Ne5 {[%clk 0:02:26.8]} 21. Bg2 {[%clk 0:02:19]} 21... Nd3 {[%clk 0:02:25.1]} 22.
Rd2 {[%clk 0:02:16.2]} 22... Rd7 {[%clk 0:02:14.4]} 23. Rfd1 {[%clk 0:02:16.1]}
23... Rfd8 {[%clk 0:02:14.6]} 24. Bf1 {[%clk 0:02:09.7]} 24... Ne5 {[%clk
0:02:11.6]} 25. Rxd7 {[%clk 0:02:08.4]} 25... Rxd7 {[%clk 0:02:12.5]} 26. Rxd7
{[%clk 0:02:04.2]} 26... Qxd7 {[%clk 0:02:13.4]} 27. Be2 {[%clk 0:01:59.6]}
27... c5 {[%clk 0:02:00.1]} 28. Qd1 {[%clk 0:01:38.8]} 28... Qxd1+ {[%clk
0:01:52.8]} 29. Bxd1 {[%clk 0:01:39.7]} 29... Nd3 {[%clk 0:01:50.1]} 30. Kf1
{[%clk 0:01:30.3]} 30... Nc1 {[%clk 0:01:48.4]} 31. a3 {[%clk 0:01:28.1]} 31...
Nd3 {[%clk 0:01:48]} 32. Bc2 {[%clk 0:01:14.7]} 32... Ne5 {[%clk 0:01:46.9]} 33.
Bd1 {[%clk 0:01:11]} 33... Kf7 {[%clk 0:01:46.6]} 34. Be2 {[%clk 0:01:10.7]}
34... g5 {[%clk 0:01:44.4]} 35. Ke1 {[%clk 0:01:10.5]} 35... Ke6 {[%clk
0:01:43.4]} 36. Kd2 {[%clk 0:01:10.7]} 36... Nd7 {[%clk 0:01:22.1]} 37. Kc3
{[%clk 0:01:09.6]} 37... Ke5 {[%clk 0:01:22.4]} 38. b4 {[%clk 0:01:07.6]} 38...
b6 {[%clk 0:01:22.8]} 39. Bf1 {[%clk 0:01:02.5]} 39... f4 {[%clk 0:01:17.1]} 40.
Bh3 {[%clk 0:00:55.8]} 40... Nf6 {[%clk 0:01:16.7]} 41. gxf4+ {[%clk 0:00:49]}
41... gxf4 {[%clk 0:01:16.6]} 42. Bc8 {[%clk 0:00:44.8]} 42... h5 {[%clk
0:01:09.4]} 43. Kd2 {[%clk 0:00:44.5]} 43... f3 {[%clk 0:01:01.5]} 44. h3 {[%clk
0:00:27.4]} 44... Ne8 {[%clk 0:00:54.5]} 45. Kc3 {[%clk 0:00:19.8]} 45... Nd6
{[%clk 0:00:54.4]} 46. Bd7 {[%clk 0:00:17.6]} 46... Kf6 {[%clk 0:00:51.5]} 47.
bxc5 {[%clk 0:00:16.5]} 47... bxc5 {[%clk 0:00:51.4]} 48. h4 {[%clk 0:00:14.3]}
48... Nf5 {[%clk 0:00:34.7]} 49. Bxf5 {[%clk 0:00:14.1]} 49... Kxf5 {[%clk
0:00:35.6]} 50. Kb3 {[%clk 0:00:13.6]} 50... Kg4 {[%clk 0:00:36.2]} 51. Ka4
{[%clk 0:00:13.4]} 51... Kxh4 {[%clk 0:00:36.7]} 52. Kb5 {[%clk 0:00:14.3]}
52... Kg5 {[%clk 0:00:18.1]} 53. Kxc5 {[%clk 0:00:15.2]} 53... h4 {[%clk
0:00:18.3]} 54. Kd6 {[%clk 0:00:06.7]} 54... h3 {[%clk 0:00:18.3]} 55. c5 {[%clk
0:00:07.6]} 55... h2 {[%clk 0:00:18.8]} 56. c6 {[%clk 0:00:08.5]} 56... h1=Q
{[%clk 0:00:19.1]} 57. c7 {[%clk 0:00:09.4]} 57... Qc1 {[%clk 0:00:16.8]} 58.
Kd7 {[%clk 0:00:09.4]} 58... Qd2+ {[%clk 0:00:10.9]} 59. Ke8 {[%clk 0:00:09.4]}
59... Qc3 {[%clk 0:00:10.8]} 60. Kd8 {[%clk 0:00:09.6]} 60... Qf6+ {[%clk
0:00:09.7]} 61. Kd7 {[%clk 0:00:08.7]} 61... Qf7+ {[%clk 0:00:10]} 62. Kd8
{[%clk 0:00:08.6]} 62... Qd5+ {[%clk 0:00:10.1]} 63. Ke8 {[%clk 0:00:07.4]}
63... Qc6+ {[%clk 0:00:10.1]} 64. Kd8 {[%clk 0:00:07.8]} 64... Qd6+ {[%clk
0:00:10.2]} 65. Kc8 {[%clk 0:00:07.7]} 65... Kf6 {[%clk 0:00:10]} 66. Kb7 {[%clk
0:00:08.3]} 66... Qd7 {[%clk 0:00:10]} 67. Kb8 {[%clk 0:00:07.9]} 67... Qb5+
{[%clk 0:00:09.9]} 68. Ka8 {[%clk 0:00:06.1]} 68... Qc6+ {[%clk 0:00:09.1]} 69.
Kb8 {[%clk 0:00:05.8]} 69... Qb6+ {[%clk 0:00:09]} 70. Kc8 {[%clk 0:00:04.9]}
70... Ke7 {[%clk 0:00:08.2]} 71. a4 {[%clk 0:00:03.5]} 71... Kd6 {[%clk
0:00:08.3]} 0-1

[Event "*** SCC Grand Prix: Titled Tuesday Blitz"]
[Site "Chess.com"]
[Date "2020.10.13"]
[Round "4"]
[White "ThePatrick27"]
[Black "GoltsevDmitry2000"]
[Result "1-0"]
[WhiteElo "2531"]
[BlackElo "2669"]
[TimeControl "180+1"]
[EndTime "10:40:53 PDT"]
[Termination "ThePatrick27 won by checkmate"]

1. d4 {[%clk 0:03:00.9]} 1... Nf6 {[%clk 0:02:48.4]} 2. c4 {[%clk 0:03:00.6]}
2... e6 {[%clk 0:02:48.4]} 3. Nf3 {[%clk 0:02:59.5]} 3... Bb4+ {[%clk
0:02:31.9]} 4. Bd2 {[%clk 0:02:54.8]} 4... Qe7 {[%clk 0:02:30.6]} 5. g3 {[%clk
0:02:48.1]} 5... O-O {[%clk 0:02:30.2]} 6. Bg2 {[%clk 0:02:47.8]} 6... Nc6
{[%clk 0:02:30.1]} 7. O-O {[%clk 0:02:46.5]} 7... Bxd2 {[%clk 0:02:28.4]} 8.
Qxd2 {[%clk 0:02:41]} 8... b6 {[%clk 0:02:27.4]} 9. Ne5 {[%clk 0:02:26.8]} 9...
Bb7 {[%clk 0:02:27.1]} 10. Nxc6 {[%clk 0:02:26.5]} 10... Bxc6 {[%clk 0:02:19.1]}
11. Bxc6 {[%clk 0:02:26]} 11... dxc6 {[%clk 0:02:20]} 12. Qc2 {[%clk 0:02:17.7]}
12... Rad8 {[%clk 0:02:17.9]} 13. Rd1 {[%clk 0:02:15.2]} 13... e5 {[%clk
0:02:17.3]} 14. dxe5 {[%clk 0:02:08.1]} 14... Qxe5 {[%clk 0:02:05]} 15. Nc3
{[%clk 0:02:05.1]} 15... a5 {[%clk 0:01:58.7]} 16. Rxd8 {[%clk 0:01:55.7]} 16...
Rxd8 {[%clk 0:01:57.7]} 17. Rd1 {[%clk 0:01:55.8]} 17... Re8 {[%clk 0:01:44]}
18. e3 {[%clk 0:01:26.1]} 18... Qh5 {[%clk 0:01:41.8]} 19. Kg2 {[%clk
0:01:12.4]} 19... Ng4 {[%clk 0:01:39.1]} 20. h3 {[%clk 0:01:01]} 20... Ne5
{[%clk 0:01:31.9]} 21. Rd4 {[%clk 0:00:44.9]} 21... Nf3 {[%clk 0:01:23.2]} 22.
Qd1 {[%clk 0:00:32.4]} 22... c5 {[%clk 0:00:36.4]} 23. Rf4 {[%clk 0:00:18.5]}
23... Ne1+ {[%clk 0:00:15.7]} 24. Qxe1 {[%clk 0:00:18.1]} 24... Rd8 {[%clk
0:00:16.3]} 25. Qe2 {[%clk 0:00:17.2]} 25... g6 {[%clk 0:00:13]} 26. Qxh5 {[%clk
0:00:16.6]} 26... gxh5 {[%clk 0:00:13.9]} 27. Ne4 {[%clk 0:00:16.6]} 27... Rd1
{[%clk 0:00:13.7]} 28. Nf6+ {[%clk 0:00:15.4]} 28... Kf8 {[%clk 0:00:13.8]} 29.
Nd5 {[%clk 0:00:13.9]} 29... Rd2 {[%clk 0:00:12.2]} 30. Nxc7 {[%clk 0:00:11.2]}
30... Rxb2 {[%clk 0:00:12.2]} 31. a4 {[%clk 0:00:10]} 31... Rb4 {[%clk
0:00:11.6]} 32. Nd5 {[%clk 0:00:10.3]} 32... Rxa4 {[%clk 0:00:11.5]} 33. Nxb6
{[%clk 0:00:10.4]} 33... Rb4 {[%clk 0:00:12.4]} 34. Nd7+ {[%clk 0:00:09.4]}
34... Ke7 {[%clk 0:00:12.9]} 35. Nxc5 {[%clk 0:00:10.3]} 35... a4 {[%clk
0:00:13.8]} 36. Rd4 {[%clk 0:00:08.6]} 36... a3 {[%clk 0:00:13.6]} 37. Rd7+
{[%clk 0:00:08.8]} 37... Ke8 {[%clk 0:00:13.5]} 38. Ra7 {[%clk 0:00:09.7]} 38...
Rxc4 {[%clk 0:00:13.5]} 39. Nd3 {[%clk 0:00:10.1]} 39... Rc3 {[%clk 0:00:12.5]}
40. Ne5 {[%clk 0:00:10.7]} 40... f6 {[%clk 0:00:11.1]} 41. Nf3 {[%clk
0:00:09.7]} 41... h6 {[%clk 0:00:10.3]} 42. Nd4 {[%clk 0:00:09.9]} 42... Rd3
{[%clk 0:00:08.9]} 43. Nb5 {[%clk 0:00:09.7]} 43... Kf8 {[%clk 0:00:08.3]} 44.
Nxa3 {[%clk 0:00:09.8]} 44... Rd2 {[%clk 0:00:08.2]} 45. Nc4 {[%clk 0:00:10]}
45... Rc2 {[%clk 0:00:08.3]} 46. Nd6 {[%clk 0:00:10.1]} 46... Rc6 {[%clk
0:00:08.6]} 47. Nf5 {[%clk 0:00:10.1]} 47... Rc5 {[%clk 0:00:07.7]} 48. Nxh6
{[%clk 0:00:09.8]} 48... Rg5 {[%clk 0:00:08]} 49. h4 {[%clk 0:00:09.8]} 49...
Rc5 {[%clk 0:00:07.4]} 50. e4 {[%clk 0:00:09.2]} 50... Re5 {[%clk 0:00:06.3]}
51. Kf3 {[%clk 0:00:09.6]} 51... Rb5 {[%clk 0:00:05.8]} 52. Kf4 {[%clk
0:00:09.6]} 52... Rb2 {[%clk 0:00:05.8]} 53. f3 {[%clk 0:00:09.8]} 53... Rb6
{[%clk 0:00:06.7]} 54. Nf5 {[%clk 0:00:09.1]} 54... Kg8 {[%clk 0:00:06.6]} 55.
Ng7 {[%clk 0:00:08.1]} 55... Kh8 {[%clk 0:00:06.1]} 56. Nxh5 {[%clk 0:00:08.2]}
56... Rb3 {[%clk 0:00:06.3]} 57. Nxf6 {[%clk 0:00:08.4]} 57... Rxf3+ {[%clk
0:00:06.7]} 58. Ke5 {[%clk 0:00:08.5]} 58... Rf5+ {[%clk 0:00:06.8]} 59. Ke6
{[%clk 0:00:08.7]} 59... Re5+ {[%clk 0:00:07]} 60. Kf7 {[%clk 0:00:09.1]} 60...
Re7+ {[%clk 0:00:03.2]} 61. Kxe7 {[%clk 0:00:09.2]} 61... Kg7 {[%clk 0:00:02.9]}
62. Ra8 {[%clk 0:00:09.5]} 62... Kh6 {[%clk 0:00:02.9]} 63. g4 {[%clk
0:00:09.7]} 63... Kg6 {[%clk 0:00:03.1]} 64. Rg8+ {[%clk 0:00:09.3]} 64... Kh6
{[%clk 0:00:04]} 65. g5# {[%clk 0:00:09.5]} 1-0